bitfinex/quotes_BTCUSD_20241028
["timestamp","ask_amount","ask_price","bid_price","bid_amount"]
[1730123707265,0.66250781,69011.0,69010.0,0.000819]
[1730123707501,0.65750781,69011.0,69010.0,0.000819]
[1730123707740,0.66950781,69011.0,69010.0,0.000819]
[1730123707963,0.78362117,69011.0,69010.0,0.000819]
[1730123708722,0.67950781,69011.0,69010.0,0.000819]
[1730123708952,0.69350781,69011.0,69010.0,0.000819]
[1730123709431,1.58655481,69011.0,69010.0,0.000819]
[1730123709660,0.99547381,69011.0,69010.0,0.000819]
[1730123710128,0.99547381,69011.0,68993.0,0.21652677]
[1730123710129,0.41794,68994.0,68993.0,0.21652677]
[1730123710395,0.144952,68988.0,68977.0,0.21652677]
[1730123710625,0.57228004,68988.0,68977.0,0.21652677]
[1730123711560,0.31845581,68988.0,68977.0,0.21652677]
[1730123712325,0.33245581,68988.0,68977.0,0.21652677]
[1730123713261,0.34645581,68988.0,68977.0,0.21652677]
[1730123713494,0.33245581,68988.0,68977.0,0.21652677]
[1730123713723,0.31845581,68988.0,68977.0,0.21652677]
[1730123713971,0.33245581,68988.0,68977.0,0.21652677]
[1730123714206,0.34645581,68988.0,68970.0,0.21734577]
[1730123714429,0.34645581,68988.0,68978.0,0.21652677]
[1730123714643,0.31845581,68988.0,68978.0,0.21652677]
[1730123715082,0.34645581,68988.0,68978.0,0.21652677]
[1730123718483,0.32345581,68988.0,68978.0,0.21652677]
[1730123718934,0.57728004,68988.0,68971.0,0.144987]
[1730123719154,0.57728004,68988.0,68970.0,0.21734577]
[1730123719373,0.57728004,68988.0,68970.0,0.36233377]
[1730123719599,0.60028004,68988.0,68970.0,0.21734577]
[1730123723219,0.59645581,68988.0,68971.0,0.289974]
[1730123723470,0.59645581,68988.0,68973.0,0.144983]
[1730123723693,1.05448004,68988.0,68970.0,0.000819]
[1730123723939,0.25,68971.0,68970.0,0.000819]
[1730123724172,0.64881223,68971.0,68970.0,0.000819]
[1730123724391,0.394988,68971.0,68970.0,0.000819]
[1730123724621,0.144988,68971.0,68970.0,0.000819]
[1730123724853,0.144979,68976.0,68970.0,0.290796]
[1730123725084,0.005,68981.0,68970.0,0.290796]
[1730123725085,0.28996,68975.0,68970.0,0.000819]
[1730123725379,0.144984,68973.0,68970.0,0.000819]
[1730123725602,0.29549081,68972.0,68970.0,0.000819]
[1730123725834,0.144988,68971.0,68970.0,0.000819]
[1730123726051,0.29549181,68971.0,68970.0,0.000819]
[1730123726499,0.32349181,68971.0,68970.0,0.000819]
[1730123726937,0.30949181,68971.0,68970.0,0.000819]
[1730123727147,0.29549181,68971.0,68970.0,0.000819]
[1730123727371,0.30949181,68971.0,68970.0,0.000819]
[1730123727603,0.17750381,68971.0,68970.0,0.000819]
[1730123727817,0.32249181,68971.0,68970.0,0.000819]
[1730123728049,0.17750381,68971.0,68970.0,0.000819]
[1730123728272,0.69241604,68971.0,68970.0,0.000819]
[1730123728707,0.69441604,68971.0,68970.0,0.000819]
[1730123729388,0.68141604,68971.0,68970.0,0.000819]
[1730123729610,0.67941604,68971.0,68970.0,0.000819]
[1730123729827,0.83191985,68971.0,68970.0,0.000819]
[1730123730071,0.83191985,68971.0,68954.0,0.00082]
[1730123730072,0.64884623,68955.0,68954.0,0.00082]
[1730123730308,0.79935004,68955.0,68954.0,0.00082]
[1730123730809,1.22397681,68955.0,68954.0,0.00082]
[1730123731033,1.22397681,68955.0,68940.0,0.00082]
[1730123731034,0.402051,68941.0,68940.0,0.00082]
[1730123731263,0.402051,68941.0,68930.0,0.21652677]
[1730123731264,0.255,68931.0,68930.0,0.21652677]
[1730123731506,0.255,68931.0,68908.0,0.21652677]
[1730123731507,0.25,68923.0,68908.0,0.21652677]
[1730123731939,0.25,68923.0,68915.0,0.21652677]
[1730123731940,0.173095,68920.0,68915.0,0.21652677]
[1730123731952,0.145095,68920.0,68915.0,0.21652677]
[1730123732185,0.145095,68920.0,68916.0,0.21652677]
[1730123732409,0.25,68931.0,68913.0,0.290219]
[1730123732633,0.22152677,68936.0,68913.0,0.290219]
[1730123732634,0.21652677,68936.0,68916.0,0.26382423]
[1730123732875,0.21652677,68929.0,68926.0,0.290164]
[1730123733110,0.15050381,68928.0,68927.0,0.145081]
[1730123733341,0.21652677,68936.0,68930.0,0.290149]
[1730123733557,0.15050381,68935.0,68931.0,0.0290149]
[1730123733785,0.15050381,68935.0,68934.0,0.145066]
[1730123734235,0.21652677,68946.0,68942.0,0.145048]
[1730123734462,0.15050381,68945.0,68942.0,0.145048]
[1730123734692,0.15050381,68945.0,68938.0,0.290115]
[1730123734693,0.15050381,68945.0,68944.0,0.145045]
[1730123734923,0.28164395,68969.0,68941.0,0.25382423]
[1730123734924,0.290037,68957.0,68941.0,0.25382423]
[1730123735146,0.15050381,68953.0,68946.0,0.290082]
[1730123735386,0.15050381,68953.0,68950.0,0.14503]
[1730123735611,0.15050381,68953.0,68946.0,0.290082]
[1730123735848,0.15050381,68953.0,68950.0,0.145032]
[1730123736324,0.15050381,68953.0,68952.0,0.145028]
[1730123736550,0.21652677,68967.0,68954.0,0.005]
[1730123736808,0.21652677,68967.0,68948.0,0.1987]
[1730123736809,0.15050381,68966.0,68964.0,0.25382423]
[1730123737059,0.15050381,68966.0,68964.0,0.145003]
[1730123737272,0.15050381,68966.0,68965.0,0.145001]
[1730123737513,0.15050381,68966.0,68960.0,0.005]
[1730123737514,0.28992,68985.0,68966.0,0.289997]
[1730123737753,0.46652677,68986.0,68973.0,0.25382423]
[1730123737754,0.21652677,68978.0,68973.0,0.25382423]
[1730123737990,0.21652677,68978.0,68966.0,0.005]
[1730123737991,0.21652677,68978.0,68970.0,0.289981]
[1730123738255,0.289922,68984.0,68976.0,0.144977]
[1730123738256,0.15050381,68977.0,68976.0,0.144977]
[1730123738484,0.46652677,68986.0,68973.0,0.25882423]
[1730123738485,0.21652677,68986.0,68973.0,0.25882423]
[1730123738702,0.15050381,68985.0,68979.0,0.14497]
[1730123738937,0.144963,68983.0,68973.0,0.54878823]
[1730123739170,0.289893,68991.0,68981.0,0.144967]
[1730123739171,0.15050381,68982.0,68981.0,0.144967]
[1730123739431,0.15050381,68982.0,68973.0,0.25882423]
[1730123739432,0.15050381,68982.0,68974.0,0.02526278]
[1730123739680,0.15050381,68982.0,68973.0,0.25882423]
[1730123739681,0.15050381,68982.0,68976.0,0.289955]
[1730123739922,0.15050381,68982.0,68978.0,0.144973]
[1730123740144,0.15050381,68982.0,68981.0,0.144967]
[1730123740362,0.1640145,68982.0,68981.0,0.144967]
[1730123740577,0.21652677,68992.0,68979.0,0.25382423]
[1730123740578,0.21652677,68992.0,68980.0,0.005]
[1730123740829,0.21652677,68992.0,68988.0,0.144951]
[1730123740830,0.16401692,68991.0,68988.0,0.144951]
[1730123741082,0.16401692,68991.0,68985.0,0.25382423]
[1730123741083,0.01351311,68990.0,68985.0,0.25382423]
[1730123741350,0.01351311,68990.0,68989.0,0.39877423]
[1730123741573,0.00165,68993.0,68992.0,0.159944]
[1730123741815,0.21652677,69007.0,68992.0,0.159944]
[1730123741816,0.21652677,69007.0,69006.0,0.144914]
[1730123742046,0.21652677,69007.0,69006.0,0.40373823]
[1730123742321,0.21652677,69014.0,69009.0,0.289817]
[1730123742549,0.21652677,69014.0,69006.0,0.25882423]
[1730123742550,0.15050381,69013.0,69006.0,0.005]
[1730123742786,0.15050381,69013.0,69012.0,0.144902]
[1730123743263,0.21652677,69024.0,69008.0,0.289821]
[1730123743264,0.144882,69022.0,69008.0,0.289821]
[1730123743474,0.15050381,69021.0,69017.0,0.14489]
[1730123743701,0.15050381,69021.0,69016.0,0.144893]
[1730123743945,0.15050381,69021.0,69013.0,0.2898]
[1730123744164,0.15050381,69021.0,69015.0,0.144895]
[1730123744165,0.29538681,69021.0,69015.0,0.144895]
[1730123744378,0.15050381,69021.0,69014.0,0.21942442]
[1730123744681,0.15050381,69021.0,69020.0,0.144885]
[1730123744892,0.15050381,69021.0,69017.0,0.14489]
[1730123745344,0.29738781,69021.0,69016.0,0.01]
[1730123745563,0.15250381,69021.0,69017.0,0.14489]
[1730123746016,0.15250381,69021.0,69016.0,0.289784]
[1730123746244,0.15250381,69021.0,69016.0,0.01]
[1730123746482,0.15050381,69021.0,69016.0,0.299787]
[1730123746733,0.001698,69025.0,69020.0,0.52891927]
[1730123746952,0.001698,69025.0,69024.0,0.144877]
[1730123747232,0.00814105,69025.0,69024.0,0.144877]
[1730123747468,0.001698,69025.0,69024.0,0.144877]
[1730123748594,0.003698,69025.0,69024.0,0.144877]
[1730123748829,0.003698,69025.0,69024.0,0.16277416]
[1730123749068,5e-05,69031.0,69030.0,0.159864]
[1730123749310,5e-05,69031.0,69030.0,0.54389827]
[1730123750703,5e-05,69031.0,69030.0,0.76242504]
[1730123750940,5e-05,69031.0,69030.0,0.54589827]
[1730123751201,0.00105,69031.0,69030.0,0.54589827]
[1730123751662,5e-05,69031.0,69030.0,0.54589827]
[1730123751877,0.00105,69031.0,69030.0,0.54589827]
[1730123752109,5e-05,69031.0,69030.0,0.54389827]
[1730123752587,0.00105,69031.0,69030.0,0.54389827]
[1730123753016,0.00205,69031.0,69030.0,0.54689827]
[1730123753475,0.00105,69031.0,69030.0,0.54389827]
[1730123754419,0.00205,69031.0,69030.0,0.54689827]
[1730123754886,0.00205,69031.0,69030.0,0.53189827]
[1730123755115,0.00205,69031.0,69030.0,0.152864]
[1730123755348,0.00205,69031.0,69030.0,0.147864]
[1730123756297,0.00205,69031.0,69030.0,0.144864]
[1730123756298,0.00105,69031.0,69030.0,0.144864]
[1730123756539,0.00748824,69031.0,69030.0,0.145864]
[1730123756744,0.00105,69031.0,69030.0,0.145864]
[1730123756972,5e-05,69031.0,69030.0,0.145864]
[1730123757199,0.00105,69031.0,69030.0,0.145864]
[1730123757710,0.00105,69031.0,69030.0,0.54979526]
[1730123757940,0.00105,69031.0,69030.0,0.54489827]
[1730123758175,0.00105,69031.0,69030.0,0.54689827]
[1730123758653,0.00105,69031.0,69030.0,0.54489827]
[1730123758916,0.00105,69031.0,69030.0,0.53989827]
[1730123759169,0.00105,69031.0,69030.0,0.53489827]
[1730123759405,0.00105,69031.0,69030.0,0.150864]
[1730123760337,0.00105,69031.0,69026.0,0.289745]
[1730123760338,0.15155381,69031.0,69026.0,0.289745]
[1730123760561,0.15050381,69030.0,69028.0,0.294736]
[1730123760787,0.15692493,69030.0,69029.0,0.144866]
[1730123761520,5e-05,69031.0,69030.0,0.151864]
[1730123761743,5e-05,69031.0,69030.0,0.54589827]
[1730123762415,5e-05,69031.0,69030.0,0.54389827]
[1730123762645,5e-05,69031.0,69030.0,0.40893916]
[1730123762886,5e-05,69031.0,69026.0,0.290745]
[1730123762887,0.15055381,69031.0,69026.0,0.001]
[1730123763123,0.14487,69027.0,69026.0,0.001]
[1730123763333,0.14487,69027.0,69021.0,0.36140877]
[1730123763334,0.15050381,69027.0,69021.0,0.21652677]
[1730123763560,0.15050381,69026.0,69021.0,0.21652677]
[1730123763777,0.15050381,69026.0,69014.0,0.54387116]
[1730123763778,0.00641772,69025.0,69014.0,0.54387116]
[1730123764008,0.00641772,69025.0,69008.0,0.25407516]
[1730123764009,0.15050381,69024.0,69008.0,0.25407516]
[1730123764218,0.15050381,69024.0,69015.0,0.289792]
[1730123764219,0.144879,69023.0,69015.0,0.289792]
[1730123764484,0.144879,69023.0,69013.0,0.25407516]
[1730123764485,0.144887,69020.0,69013.0,0.25407516]
[1730123764706,0.144887,69020.0,69010.0,0.144905]
[1730123764707,0.15050381,69019.0,69010.0,0.144905]
[1730123764917,0.289797,69014.0,69007.0,0.289825]
[1730123765168,0.15050381,69013.0,69008.0,0.289821]
[1730123765381,0.15692125,69013.0,69012.0,0.144902]
[1730123766057,0.15050381,69013.0,69012.0,0.144902]
[1730123766290,0.145186,69020.0,69009.0,0.289813]
[1730123766291,0.0003,69020.0,69019.0,0.144887]
[1730123766535,0.0003,69020.0,69009.0,0.005]
[1730123766536,0.15050381,69020.0,69015.0,0.25407516]
[1730123766742,0.0074175,69020.0,69019.0,0.144887]
[1730123766948,0.0003,69023.0,69015.0,0.25407516]
[1730123767180,0.00641747,69022.0,69021.0,0.144883]
[1730123767411,0.00641747,69022.0,69021.0,0.1593713]
[1730123767412,0.15692128,69022.0,69021.0,0.1593713]
[1730123767647,0.15692128,69022.0,69021.0,0.144883]
[1730123767932,0.15050381,69022.0,69021.0,0.144883]
[1730123768112,0.15050381,69022.0,69012.0,0.1449]
[1730123768113,0.144892,69017.0,69012.0,0.1449]
[1730123768324,0.15050381,69016.0,69015.0,0.21652677]
[1730123768536,0.15050381,69016.0,69011.0,0.289808]
[1730123768747,0.15050381,69016.0,69013.0,0.144899]
[1730123768969,0.15050381,69016.0,69008.0,0.289821]
[1730123769220,0.15050381,69016.0,69014.0,0.144897]
[1730123769444,0.01349927,69015.0,69014.0,0.144897]
[1730123769684,0.16400308,69015.0,69014.0,0.144897]
[1730123769904,0.16400308,69015.0,69008.0,0.289821]
[1730123770122,0.16400308,69014.0,69012.0,0.001]
[1730123770341,0.01349927,69013.0,69012.0,0.001]
[1730123770590,0.01349927,69013.0,69009.0,0.144908]
[1730123770591,0.16400308,69013.0,69009.0,0.144908]
[1730123770802,0.16400308,69012.0,69009.0,0.144908]
[1730123771019,0.01349927,69011.0,69009.0,0.144908]
[1730123771233,0.16400308,69010.0,69009.0,0.144908]
[1730123771438,0.16400308,69010.0,69008.0,0.144909]
[1730123771657,0.01349927,69009.0,69004.0,0.289837]
[1730123771896,0.289829,69006.0,68991.0,0.289889]
[1730123772122,0.289829,69006.0,68989.0,0.33347516]
[1730123772123,0.28985,69001.0,68981.0,0.21652677]
[1730123772352,0.14524,68994.0,68983.0,0.289925]
[1730123772590,0.15873927,68994.0,68983.0,0.289925]
[1730123772810,0.15873927,68994.0,68969.0,0.0831]
[1730123772811,0.47304686,68994.0,68969.0,0.0831]
[1730123773079,0.41281443,68994.0,68982.0,0.21652677]
[1730123773313,0.15873927,68994.0,68982.0,0.21652677]
[1730123773545,0.30924308,68994.0,68984.0,0.28992]
[1730123773765,0.30924308,68994.0,68988.0,0.144951]
[1730123773982,0.30924308,68994.0,68986.0,0.289909]
[1730123773983,0.16430308,68994.0,68986.0,0.289909]
[1730123774200,0.30924308,68994.0,68988.0,0.144952]
[1730123774421,0.31524308,68994.0,68984.0,0.289919]
[1730123774638,0.31924308,68994.0,68986.0,0.144954]
[1730123774857,0.31924308,68994.0,68982.0,0.21652677]
[1730123775554,0.332718,68994.0,68982.0,0.21652677]
[1730123775819,0.31924308,68994.0,68982.0,0.21652677]
[1730123776056,0.35543267,68994.0,68982.0,0.21652677]
[1730123776279,0.34195782,68994.0,68982.0,0.21652677]
[1730123776757,0.34195782,68994.0,68970.0,0.14499]
[1730123776758,0.60503298,68994.0,68970.0,0.14499]
[1730123777034,0.84649959,68994.0,68983.0,0.21652677]
[1730123777254,0.40554308,68994.0,68983.0,0.21652677]
[1730123777514,0.42954308,68994.0,68983.0,0.21652677]
[1730123778203,0.41454308,68994.0,68983.0,0.21652677]
[1730123778877,0.33718763,68994.0,68983.0,0.21652677]
[1730123779093,0.33718763,68994.0,68983.0,0.36148877]
[1730123779325,0.33718763,68994.0,68986.0,0.144955]
[1730123779326,0.33718821,68994.0,68986.0,0.144955]
[1730123779576,0.33718821,68994.0,68975.0,0.21652677]
[1730123779577,0.92675589,68994.0,68978.0,0.21652677]
[1730123780033,0.80956337,68994.0,68985.0,0.21652677]
[1730123780484,0.79556337,68994.0,68985.0,0.21652677]
[1730123780705,0.79556337,68994.0,68986.0,0.21652677]
[1730123781204,0.76848821,68994.0,68986.0,0.21652677]
[1730123781406,1.04556337,68994.0,68978.0,0.21652677]
[1730123782084,1.04556337,68994.0,68985.0,0.21652677]
[1730123782085,0.57318821,68994.0,68985.0,0.21652677]
[1730123782312,0.32318821,68994.0,68986.0,0.144955]
[1730123782556,0.32317196,68994.0,68985.0,0.21652677]
[1730123782784,0.32317196,68994.0,68987.0,0.289909]
[1730123782785,0.17850381,68994.0,68987.0,0.289909]
[1730123783015,0.17850381,68994.0,68993.0,0.145766]
[1730123783255,0.17850381,68994.0,68993.0,0.000824]
[1730123783775,0.16450381,68994.0,68993.0,0.000824]
[1730123783995,0.15050381,68994.0,68993.0,0.145766]
[1730123784221,0.16450381,68994.0,68993.0,0.000824]
[1730123784457,0.29544381,68994.0,68993.0,0.000824]
[1730123784684,0.29574381,68994.0,68993.0,0.000824]
[1730123785439,0.55918593,68994.0,68993.0,0.000824]
[1730123785661,0.58318593,68994.0,68993.0,0.000824]
[1730123785875,0.60590079,68994.0,68993.0,0.000824]
[1730123786322,0.60789846,68994.0,68993.0,0.000824]
[1730123786538,0.74861687,68994.0,68993.0,0.000824]
[1730123786758,0.73190201,68994.0,68993.0,0.000824]
[1730123786979,0.59262308,68994.0,68993.0,0.000824]
[1730123787240,0.60662308,68994.0,68993.0,0.000824]
[1730123787480,0.62062308,68994.0,68993.0,0.000824]
[1730123787710,0.89768308,68994.0,68993.0,0.000824]
[1730123788146,0.91168308,68994.0,68993.0,0.000824]
[1730123788375,0.410271,68979.0,68978.0,0.21652677]
[1730123788617,0.85128976,68979.0,68978.0,0.21652677]
[1730123788841,1.12398976,68979.0,68978.0,0.21652677]
[1730123789074,0.410288,68971.0,68960.0,0.21652677]
[1730123789297,0.82830676,68971.0,68960.0,0.21652677]
[1730123789521,0.145309,68961.0,68960.0,0.21652677]
[1730123789770,0.3092526,68961.0,68960.0,0.21652677]
[1730123790001,0.3092526,68961.0,68951.0,0.21652677]
[1730123790002,0.145026,68953.0,68951.0,0.21652677]
[1730123790234,0.290001,68966.0,68951.0,0.21652677]
[1730123790235,0.15080381,68960.0,68958.0,0.145015]
[1730123790490,0.15080381,68960.0,68947.0,0.00506525]
[1730123790491,0.15050381,68960.0,68959.0,0.145013]
[1730123790705,0.15050381,68960.0,68959.0,0.1595143]
[1730123790920,0.15050381,68960.0,68958.0,0.145015]
[1730123791387,0.15050381,68960.0,68956.0,0.290037]
[1730123791619,0.15750381,68960.0,68958.0,0.145015]
[1730123791855,0.15750381,68960.0,68952.0,0.0047]
[1730123792099,0.15750381,68960.0,68947.0,0.00506525]
[1730123792100,0.15750381,68960.0,68948.0,0.00082]
[1730123792101,0.145334,68949.0,68948.0,0.00082]
[1730123792322,0.29583781,68949.0,68948.0,0.00082]
[1730123792565,0.55927899,68949.0,68948.0,0.00082]
[1730123792801,0.81335415,68949.0,68948.0,0.00082]
[1730123793027,0.98841678,68949.0,68948.0,0.00082]
[1730123793496,0.99041678,68949.0,68948.0,0.00082]
[1730123793732,0.83791297,68949.0,68948.0,0.00082]
[1730123793972,0.84591297,68949.0,68948.0,0.00082]
[1730123794200,0.82891297,68949.0,68948.0,0.00082]
[1730123794668,0.30983781,68949.0,68948.0,0.00082]
[1730123794921,0.33256638,68949.0,68948.0,0.00082]
[1730123795143,0.34656638,68949.0,68948.0,0.00082]
[1730123796522,0.32383781,68949.0,68948.0,0.00082]
[1730123796993,0.32383781,68949.0,68948.0,0.01549513]
[1730123796994,0.17850381,68949.0,68948.0,0.01549513]
[1730123797217,0.17880381,68949.0,68948.0,0.00082]
[1730123797872,0.15080381,68949.0,68948.0,0.00082]
[1730123798312,0.16380381,68949.0,68948.0,0.00082]
[1730123799339,0.17780381,68949.0,68948.0,0.00082]
[1730123799552,0.32283781,68949.0,68948.0,0.00082]
[1730123801440,0.36083781,68949.0,68948.0,0.00082]
[1730123801696,0.36283781,68949.0,68948.0,0.00082]
[1730123804259,0.37056897,68949.0,68948.0,0.00082]
[1730123804486,0.33256897,68949.0,68948.0,0.00082]
[1730123804705,0.32383781,68949.0,68948.0,0.00082]
[1730123805628,0.30983781,68949.0,68948.0,0.00082]
[1730123805846,0.32383781,68949.0,68948.0,0.00082]
[1730123806063,0.30983781,68949.0,68948.0,0.00082]
[1730123806283,0.31856606,68949.0,68948.0,0.00082]
[1730123806654,0.33256606,68949.0,68948.0,0.00082]
[1730123806885,0.43960967,68949.0,68948.0,0.00082]
[1730123807040,0.37528295,68949.0,68948.0,0.00082]
[1730123807262,0.37728295,68949.0,68948.0,0.00082]
[1730123807897,0.77714781,68949.0,68948.0,0.00082]
[1730123808325,0.58068481,68949.0,68948.0,0.00052]
[1730123809845,0.57868481,68949.0,68948.0,0.00052]
[1730123810199,0.58068481,68949.0,68948.0,0.00052]
[1730123811195,0.47749081,68949.0,68948.0,0.00052]
[1730123811403,0.183336,68948.0,68947.0,1e-08]
[1730123811612,0.29583981,68948.0,68947.0,1e-08]
[1730123811749,0.30083981,68948.0,68947.0,1e-08]
[1730123811960,0.3092864,68948.0,68947.0,1e-08]
[1730123812186,0.47153434,68948.0,68947.0,1e-08]
[1730123812426,0.3092864,68948.0,68947.0,1e-08]
[1730123812632,0.3142864,68948.0,68947.0,1e-08]
[1730123812873,0.32829128,68948.0,68947.0,1e-08]
[1730123813070,0.34229128,68948.0,68947.0,1e-08]
[1730123813522,0.37002105,68948.0,68947.0,1e-08]
[1730123813736,0.35656958,68948.0,68947.0,1e-08]
[1730123813954,0.34730286,68948.0,68947.0,1e-08]
[1730123814419,0.34786126,68948.0,68947.0,1e-08]
[1730123814636,0.35578046,68948.0,68947.0,1e-08]
[1730123815453,0.37851076,68948.0,68947.0,1e-08]
[1730123815995,0.32883981,68948.0,68947.0,1e-08]
[1730123816214,0.35582061,68948.0,68947.0,1e-08]
[1730123816425,0.34233021,68948.0,68947.0,1e-08]
[1730123817056,0.33733021,68948.0,68947.0,1e-08]
[1730123817288,0.48358253,68948.0,68947.0,1e-08]
[1730123817513,0.34233021,68948.0,68947.0,1e-08]
[1730123817740,0.35233021,68948.0,68947.0,1e-08]
[1730123817970,0.63173021,68948.0,68947.0,1e-08]
[1730123818179,0.34733021,68948.0,68947.0,1e-08]
[1730123818387,0.62533021,68948.0,68947.0,1e-08]
[1730123818598,0.61133021,68948.0,68947.0,1e-08]
[1730123819222,0.62533021,68948.0,68947.0,1e-08]
[1730123819453,0.93048898,68948.0,68947.0,1e-08]
[1730123819693,0.162345,68944.0,68943.0,0.00082]
[1730123819994,0.65445316,68928.0,68927.0,0.000825]
[1730123820171,0.81844737,68928.0,68927.0,0.000825]
[1730123821053,0.89882363,68928.0,68927.0,0.000825]
[1730123821264,0.81844737,68928.0,68927.0,0.000825]
[1730123821984,0.55937221,68928.0,68927.0,0.000825]
[1730123822228,0.8134884,68928.0,68927.0,0.000825]
[1730123822897,0.5634884,68928.0,68927.0,0.000825]
[1730123823128,0.31841324,68928.0,68927.0,0.000825]
[1730123823388,0.32941324,68928.0,68927.0,0.000825]
[1730123823617,0.17503524,68928.0,68927.0,0.000825]
[1730123823838,0.18903524,68928.0,68927.0,0.000825]
[1730123824059,0.35719718,68928.0,68927.0,0.000825]
[1730123824335,0.33446324,68928.0,68927.0,0.000825]
[1730123824572,0.58446324,68928.0,68927.0,0.000825]
[1730123824775,0.57046324,68928.0,68927.0,0.000825]
[1730123825010,0.55946324,68928.0,68927.0,0.000825]
[1730123825232,0.57346324,68928.0,68927.0,0.000825]
[1730123825679,0.34619767,68928.0,68927.0,0.000825]
[1730123826138,0.20081967,68928.0,68927.0,0.000825]
[1730123826346,0.17808524,68928.0,68927.0,0.000825]
[1730123826588,0.17808524,68928.0,68927.0,0.145906]
[1730123826820,0.17808524,68928.0,68927.0,0.000825]
[1730123827036,0.18708524,68928.0,68927.0,0.000825]
[1730123827255,0.17808524,68928.0,68927.0,0.000825]
[1730123827476,0.02758143,68928.0,68927.0,0.66328116]
[1730123827714,0.02758143,68928.0,68927.0,0.264125]
[1730123827715,0.19208524,68928.0,68927.0,0.264125]
[1730123827933,0.19208524,68928.0,68927.0,0.409206]
[1730123827934,0.04158143,68928.0,68927.0,0.409206]
[1730123828243,0.02758143,68928.0,68927.0,0.409206]
[1730123828422,0.02758143,68928.0,68927.0,0.66328116]
[1730123828605,0.01558143,68928.0,68927.0,0.67298116]
[1730123828865,0.21652677,68944.0,68937.0,0.005]
[1730123829110,0.21652677,68956.0,68930.0,0.002]
[1730123829111,0.0003,68952.0,68948.0,0.145035]
[1730123829364,0.0003,68952.0,68944.0,0.0804]
[1730123829609,0.0003,68953.0,68949.0,0.145034]
[1730123829821,0.0003,68953.0,68944.0,0.0804]
[1730123829822,0.0003,68952.0,68944.0,0.0804]
[1730123830039,0.145037,68948.0,68944.0,0.0804]
[1730123830257,0.0003,68949.0,68944.0,0.0804]
[1730123830258,0.01352848,68947.0,68944.0,0.0804]
[1730123830496,0.15050381,68946.0,68945.0,0.00804]
[1730123830729,0.15050381,68946.0,68944.0,0.0804]
[1730123831198,0.15050381,68946.0,68933.0,0.082]
[1730123831458,0.15050381,68939.0,68926.0,0.21652677]
[1730123831688,0.145078,68928.0,68927.0,0.000825]
[1730123831889,0.29558181,68928.0,68927.0,0.000825]
[1730123832788,0.29558181,68928.0,68927.0,0.002825]
[1730123833235,0.29558181,68928.0,68927.0,0.000825]
[1730123833502,0.29558181,68928.0,68927.0,0.002825]
[1730123833704,0.15050381,68928.0,68927.0,0.002825]
[1730123833934,0.15050381,68928.0,68927.0,0.02880519]
[1730123834166,0.15050381,68928.0,68927.0,0.002825]
[1730123834411,0.29658181,68928.0,68927.0,0.002825]
[1730123835765,0.29658181,68928.0,68927.0,0.000825]
[1730123835982,0.29758181,68928.0,68927.0,0.000825]
[1730123837359,0.15150381,68928.0,68927.0,0.000825]
[1730123837665,0.29658181,68928.0,68927.0,0.000825]
[1730123839446,0.15150381,68928.0,68927.0,0.000825]
[1730123839759,0.15150381,68928.0,68927.0,0.145906]
[1730123839933,0.15150381,68928.0,68927.0,0.000825]
[1730123840615,0.001,68928.0,68927.0,0.145906]
[1730123840880,0.01452424,68928.0,68927.0,0.150906]
[1730123841076,0.001,68928.0,68927.0,0.150906]
[1730123841501,0.001,68928.0,68927.0,0.15380718]
[1730123841730,0.001,68928.0,68927.0,0.240506]
[1730123842655,5e-05,68930.0,68929.0,0.159776]
[1730123845413,0.1640156,68931.0,68928.0,0.146077]
[1730123845622,0.145076,68929.0,68928.0,0.002]
[1730123845856,0.3090916,68929.0,68928.0,0.002]
[1730123846066,0.146078,68928.0,68927.0,0.001825]
[1730123846275,0.3117436,68928.0,68927.0,0.001825]
[1730123847278,0.3120436,68928.0,68927.0,0.001825]
[1730123847515,0.3110436,68928.0,68927.0,0.000825]
[1730123847723,0.3110436,68928.0,68927.0,0.002825]
[1730123848419,0.3110436,68928.0,68927.0,0.000825]
[1730123849111,0.3130436,68928.0,68927.0,0.000825]
[1730123850472,0.3130936,68928.0,68927.0,0.000825]
[1730123851199,0.29958181,68928.0,68927.0,0.000825]
[1730123851435,0.3130913,68928.0,68927.0,0.000825]
[1730123852788,0.31309316,68928.0,68927.0,0.000825]
[1730123853872,0.16801516,68928.0,68927.0,0.000825]
[1730123854954,0.15450381,68928.0,68927.0,0.000825]
[1730123855182,0.16801763,68928.0,68927.0,0.000825]
[1730123855639,0.31309563,68928.0,68927.0,0.000825]
[1730123855866,0.16801763,68928.0,68927.0,0.000825]
[1730123856120,0.01721382,68928.0,68927.0,0.39998116]
[1730123856796,0.0037,68928.0,68927.0,0.39998116]
[1730123857005,0.0037,68928.0,68927.0,0.48658116]
[1730123857236,0.0037,68928.0,68927.0,0.48158116]
[1730123857933,0.0037,68928.0,68927.0,0.48628116]
[1730123858355,0.0017,68928.0,68927.0,0.48628116]
[1730123858814,0.0017,68928.0,68927.0,0.49828116]
[1730123859046,0.0017,68928.0,68927.0,0.71480793]
[1730123859288,0.0027,68928.0,68927.0,0.93086013]
[1730123859502,0.001648,68930.0,68927.0,0.93086013]
[1730123859503,0.001648,68930.0,68929.0,0.161776]
[1730123859737,0.21652677,68946.0,68945.0,0.150043]
[1730123859961,0.21652677,68946.0,68945.0,0.48651816]
[1730123860386,0.21652677,68955.0,68949.0,0.355234]
[1730123860820,0.0003,68967.0,68949.0,0.57831933]
[1730123861050,0.0003,68967.0,68949.0,0.353234]
[1730123861273,0.0003,68968.0,68949.0,0.355234]
[1730123861487,0.0003,68969.0,68949.0,0.355234]
[1730123861954,0.21652677,68973.0,68949.0,0.355234]
[1730123862174,0.21652677,68973.0,68949.0,0.362234]
[1730123862175,0.002698,68950.0,68949.0,0.362234]
[1730123862415,0.21652677,68973.0,68972.0,0.144986]
[1730123862636,0.21652677,68973.0,68972.0,0.39906116]
[1730123862869,0.21687677,68980.0,68979.0,0.144971]
[1730123862870,5e-05,68980.0,68979.0,0.144971]
[1730123863080,5e-05,68980.0,68979.0,0.40404616]
[1730123863316,5e-05,68980.0,68979.0,0.41374616]
[1730123864231,0.00105,68980.0,68979.0,0.42174616]
[1730123864680,5e-05,68980.0,68979.0,0.144971]
[1730123865169,5e-05,68980.0,68969.0,0.25407516]